fUSD/lending_fUSD_20240814
["ID","MTS","AMOUNT","RATE_DAILY","PERIOD"]
[334915365,1723643724899,-2000.0,0.00010959,2]
[334915366,1723643724921,-200.36618776,0.00010973,2]
[334915367,1723643724945,-6119.37613467,0.00010997,2]
[334915368,1723643724970,-500.0,0.00010999,2]
[334915369,1723643724996,-501.49882417,0.00010999,2]
[334915370,1723643725020,-383.6206245,0.00010999,2]
[334915371,1723643725044,-572.0,0.00011,2]
[334915372,1723643725072,-455080.64737935,0.00011,2]
[334915373,1723643725102,-11445229.33814901,0.00011,2]
[334915374,1723643725127,-151.0,0.00011,2]
[334915375,1723643725150,-151.0,0.00011,2]
[334915376,1723643725174,-151.0,0.00011,2]
[334915377,1723643725198,-151.0,0.00011,2]
[334915378,1723643725222,-151.0,0.00011,2]
[334915379,1723643725245,-151.0,0.00011,2]
[334915380,1723643725268,-151.0,0.00011,2]
[334915381,1723643725291,-151.0,0.00011,2]
[334915382,1723643725314,-151.0,0.00011,2]
[334915383,1723643725337,-151.0,0.00011,2]
[334915384,1723643725360,-151.0,0.00011,2]
[334915385,1723643725383,-151.0,0.00011,2]
[334915386,1723643725405,-151.0,0.00011,2]
[334915387,1723643725428,-151.0,0.00011,2]
[334915388,1723643725451,-151.0,0.00011,2]
[334915389,1723643725475,-151.0,0.00011,2]
[334915390,1723643725498,-151.0,0.00011,2]
[334915391,1723643725666,-151.0,0.00011,2]
[334915392,1723643725690,-154.0588,0.00011,2]
[334915393,1723643725713,-151.0,0.00011,2]
[334915394,1723643725735,-151.0,0.00011,2]
[334915395,1723643725758,-151.0,0.00011,2]
[334915396,1723643725781,-151.0,0.00011,2]
[334915397,1723643725804,-151.0,0.00011,2]
[334915398,1723643725825,-750.0,0.00011,2]
[334915399,1723643725849,-173.632308,0.00011,2]
[334915400,1723643725871,-173.632308,0.00011,2]
[334915401,1723643725893,-173.632308,0.00011,2]
[334915402,1723643725915,-173.632308,0.00011,2]
[334915403,1723643725938,-173.632308,0.00011,2]
[334915404,1723643725960,-173.632308,0.00011,2]
[334915405,1723643725982,-173.632308,0.00011,2]
[334915406,1723643726005,-173.632308,0.00011,2]
[334915407,1723643726026,-173.632308,0.00011,2]
[334915408,1723643726051,-173.632308,0.00011,2]
[334915409,1723643726073,-151.0,0.00011,2]
[334915410,1723643726096,-151.0,0.00011,2]
[334915411,1723643726119,-200.149565,0.00011,2]
[334915412,1723643726159,-775505.55540458,0.00011,2]
[334915413,1723643726182,-189.109904,0.00011,2]
[334915414,1723643726204,-189.109904,0.00011,2]
[334915415,1723643726227,-189.109904,0.00011,2]
[334915416,1723643726249,-189.109904,0.00011,2]
[334915417,1723643726271,-151.0,0.00011,2]
[334915418,1723643726294,-151.0,0.00011,2]
[334915419,1723643726317,-151.0,0.00011,2]
[334915420,1723643726339,-151.0,0.00011,2]
[334915421,1723643726361,-151.0,0.00011,2]
[334915422,1723643726385,-151.0,0.00011,2]
[334915423,1723643726407,-223.549411,0.00011,2]
[334915424,1723643726429,-223.549411,0.00011,2]
[334915425,1723643726452,-223.549411,0.00011,2]
[334915426,1723643726475,-223.549411,0.00011,2]
[334915427,1723643726498,-223.549411,0.00011,2]
[334915428,1723643726522,-223.549411,0.00011,2]
[334915429,1723643726545,-223.549411,0.00011,2]
[334915430,1723643726568,-223.549411,0.00011,2]
[334915431,1723643726591,-223.549411,0.00011,2]
[334915432,1723643726614,-159.681171,0.00011,2]
[334915433,1723643726638,-223.549411,0.00011,2]
[334915434,1723643726660,-159.681171,0.00011,2]
[334915435,1723643726683,-223.549411,0.00011,2]
[334915436,1723643726705,-223.549411,0.00011,2]
[334915437,1723643726727,-159.681171,0.00011,2]
[334915438,1723643726749,-223.549411,0.00011,2]
[334915439,1723643726772,-159.681171,0.00011,2]
[334915440,1723643726796,-223.549411,0.00011,2]
[334915441,1723643726820,-159.681171,0.00011,2]
[334915442,1723643726842,-159.681171,0.00011,2]
[334915443,1723643726864,-159.681171,0.00011,2]
[334915444,1723643726885,-159.681171,0.00011,2]
[334915445,1723643726908,-159.681171,0.00011,2]
[334915446,1723643726930,-159.681171,0.00011,2]
[334915447,1723643726951,-159.681171,0.00011,2]
[334915448,1723643726972,-159.681171,0.00011,2]
[334915449,1723643726994,-159.681171,0.00011,2]
[334915450,1723643727016,-159.681171,0.00011,2]
[334915451,1723643727039,-151.0,0.00011,2]
[334915452,1723643727064,-151.0,0.00011,2]
[334915453,1723643727089,-151.0,0.00011,2]
[334915454,1723643727111,-151.0,0.00011,2]
[334915455,1723643727134,-151.0,0.00011,2]
[334915456,1723643727156,-151.0,0.00011,2]
[334915457,1723643727178,-151.0,0.00011,2]
[334915458,1723643727199,-151.0,0.00011,2]
[334915459,1723643727222,-151.0,0.00011,2]
[334915460,1723643727244,-151.0,0.00011,2]
[334915461,1723643727266,-151.0,0.00011,2]
[334915462,1723643727288,-151.0,0.00011,2]
[334915463,1723643727312,-242.159582,0.00011,2]
[334915464,1723643727333,-151.0,0.00011,2]
[334915465,1723643727354,-151.0,0.00011,2]
[334915466,1723643727376,-151.0,0.00011,2]
[334915467,1723643727398,-151.0,0.00011,2]
[334915468,1723643727421,-151.0,0.00011,2]
[334915469,1723643727446,-151.0,0.00011,2]
[334915470,1723643727470,-151.0,0.00011,2]
[334915471,1723643727494,-151.0,0.00011,2]
[334915472,1723643727517,-151.0,0.00011,2]
[334915473,1723643727540,-151.0,0.00011,2]
[334915474,1723643727563,-151.0,0.00011,2]
[334915475,1723643727586,-151.0,0.00011,2]
[334915476,1723643727609,-151.0,0.00011,2]
[334915477,1723643727632,-151.0,0.00011,2]
[334915478,1723643727654,-151.0,0.00011,2]
[334915479,1723643727675,-151.0,0.00011,2]
[334915480,1723643727697,-151.0,0.00011,2]
[334915481,1723643727719,-151.0,0.00011,2]
[334915482,1723643727743,-151.0,0.00011,2]
[334915483,1723643727767,-151.0,0.00011,2]
[334915484,1723643727790,-151.0,0.00011,2]
[334915485,1723643727814,-151.0,0.00011,2]
[334915486,1723643727839,-154.265322,0.00011,2]
[334915487,1723643727862,-254.515709,0.00011,2]
[334915488,1723643727886,-254.515709,0.00011,2]
[334915489,1723643727909,-254.515709,0.00011,2]
[334915490,1723643727932,-254.515709,0.00011,2]
[334915491,1723643727958,-254.515709,0.00011,2]
[334915492,1723643727982,-254.515709,0.00011,2]
[334915493,1723643728004,-254.515709,0.00011,2]
[334915494,1723643728027,-254.515709,0.00011,2]
[334915495,1723643728051,-254.515709,0.00011,2]
[334915496,1723643728072,-254.515709,0.00011,2]
[334915497,1723643728095,-254.515709,0.00011,2]
[334915498,1723643728116,-254.515709,0.00011,2]
[334915499,1723643728141,-254.515709,0.00011,2]
[334915500,1723643728163,-254.515709,0.00011,2]
[334915501,1723643728186,-254.515709,0.00011,2]
[334915502,1723643728208,-254.515709,0.00011,2]
[334915503,1723643728230,-246.564929,0.00011,2]
[334915504,1723643728253,-12831.64362267,0.00011,2]
[334915505,1723643728275,-2000.0,0.00011,2]
[334915506,1723643728297,-200.0,0.00011,2]
[334915507,1723643728320,-200.0,0.00011,2]
[334915508,1723643728342,-420.0,0.00011,2]
[334915509,1723643728364,-2921.22558,0.00011,2]
[334915510,1723643728386,-587.58,0.00011,2]
[334915511,1723643728418,-24612.0,0.00011043,2]
[334915512,1723643728441,-173.632308,0.00011043,2]
[334915513,1723643728592,-173.632308,0.00011043,2]
[334915514,1723643728624,-4688.0,0.00011046,2]
[334915515,1723643728649,-168.0,0.00011071,2]
[334915516,1723643728673,-603.2,0.00011071,2]
[334915517,1723643728699,-200.0,0.00011071,2]
[334915518,1723643728725,-396.8,0.00011071,2]
[334915519,1723643728748,-425.37,0.000111,2]
[334915520,1723643728771,-150.0,0.000111,2]
[334915521,1723643728795,-1987.55353182,0.0001111,2]
[334915522,1723643728818,-200.0,0.0001111,2]
[334915523,1723643728841,-200.0,0.0001111,2]
[334915524,1723643728865,-420.0,0.00011123,2]
[334915525,1723643728888,-420.0,0.00011124,2]
[334915526,1723643728930,-426.45,0.000112,2]
[334915527,1723643728953,-300.0,0.000112,2]
[334915528,1723643728976,-367.42,0.000112,2]
[334915529,1723643728999,-300.0,0.000112,2]
[334915530,1723643729022,-200.0,0.00011221,2]
[334915531,1723643729047,-200.0,0.00011221,2]
[334915532,1723643729074,-426.45,0.000113,2]
[334915533,1723643729097,-426.45,0.000113,2]
[334915534,1723643729119,-200.0,0.00011333,2]
[334915535,1723643729146,-200.0,0.00011333,2]
[334915536,1723643729168,-379.98658751,0.00011351,2]
[334915537,1723643729191,-412.16930654,0.00011383,2]
[334915538,1723643729214,-356.58,0.000114,2]
[334915539,1723643729236,-200.0,0.00011447,2]
[334915540,1723643729258,-713.16,0.000117,2]
[334915541,1723643729281,-300.0,0.000117,2]
[334915542,1723643729303,-1401.42823836,0.00011789,2]
[334915543,1723643729326,-622.0,0.000119,2]
[334915544,1723643729349,-1257.0,0.000119,2]
[334915545,1723643729372,-1542.0,0.000119,2]
[334915546,1723643729393,-1924.0,0.000119,2]
[334915547,1723643729415,-556.0,0.000119,2]
[334915548,1723643729453,-150.0,0.000119,2]
[334915549,1723643729479,-446.0,0.000119,2]
[334915550,1723643729504,-810.0,0.000119,2]
[334915551,1723643729529,-1137.0,0.000119,2]
[334915552,1723643729553,-150.302,0.000119,2]
[334915553,1723643729576,-551.0,0.000119,2]
[334915554,1723643729600,-1895.0,0.000119,2]
[334915555,1723643729625,-366.249,0.000119,2]
[334915556,1723643729650,-1178.0,0.000119,2]
[334915557,1723643729674,-3292.0,0.000119,2]
[334915558,1723643729698,-150.0,0.000119,2]
[334915559,1723643729723,-5134.0,0.000119,2]
[334915560,1723643729747,-5843.0,0.000119,2]
[334915561,1723643729771,-289.0,0.000119,2]
[334915562,1723643729795,-216.0,0.000119,2]
[334915563,1723643729819,-150.0,0.000119,2]
[334915564,1723643729842,-216.0,0.000119,2]
[334915565,1723643729865,-1159.474,0.000119,2]
[334915566,1723643729889,-156.085,0.000119,2]
[334915567,1723643729912,-209.076,0.000119,2]
[334915568,1723643729940,-163.0,0.000119,2]
[334915569,1723643729975,-163.815,0.000119,2]
[334915570,1723643729998,-265.846,0.000119,2]
[334915571,1723643730023,-150.0,0.000119,2]
[334915572,1723643730057,-150.0,0.000119,2]
[334915573,1723643730087,-150.0,0.000119,2]
[334915574,1723643730114,-150.222,0.000119,2]
[334915575,1723643730147,-1204.0,0.000119,2]
[334915576,1723643730177,-21761.0,0.000119,2]
[334915577,1723643730206,-1673.0,0.000119,2]
[334915578,1723643730237,-200.0,0.00011973,2]
[334915579,1723643730266,-179.3134955,0.00011973,2]
[334915580,1723643730294,-200.0,0.00011973,2]
[334915581,1723643730324,-202.69812289,0.00011973,2]
[334915582,1723643730352,-200.0,0.00011973,2]
[334915583,1723643730378,-200.0,0.00011973,2]
[334915584,1723643730407,-200.0,0.00011973,2]
[334915585,1723643730436,-5000.0,0.00012,2]
[334915586,1723643730483,-151.0,0.00012,2]
[334915587,1723643730515,-151.0,0.00012,2]
[334915588,1723643730542,-151.0,0.00012,2]
[334915589,1723643730568,-151.0,0.00012,2]
[334915590,1723643730598,-173.632308,0.00012,2]
[334915591,1723643730628,-173.632308,0.00012,2]
[334915592,1723643730657,-189.109904,0.00012,2]
[334915593,1723643730685,-14103.3187064,0.00012,2]
[334915594,1723643730713,-161.302544,0.00012,2]
[334915595,1723643730740,-223.549411,0.00012,2]
[334915596,1723643730768,-223.549411,0.00012,2]
[334915597,1723643730796,-223.549411,0.00012,2]
[334915598,1723643730823,-223.549411,0.00012,2]
[334915599,1723643730850,-159.681171,0.00012,2]
[334915600,1723643730880,-159.681171,0.00012,2]
[334915601,1723643730908,-159.681171,0.00012,2]
[334915602,1723643730935,-159.681171,0.00012,2]
[334915603,1723643730962,-151.0,0.00012,2]
[334915604,1723643731005,-151.0,0.00012,2]
[334915605,1723643731033,-254.515709,0.00012,2]
[334915606,1723643731063,-254.515709,0.00012,2]
[334915607,1723643731095,-600.0,0.00012,2]
[334915608,1723643731124,-1144.16,0.00012,2]
[334915609,1723643731152,-1144.16,0.00012,2]
[334915610,1723643731182,-1144.16,0.00012,2]
[334915611,1723643731211,-1144.16,0.00012,2]
[334915612,1723643731238,-1144.16,0.00012,2]
[334915613,1723643731266,-1144.16,0.00012,2]
[334915614,1723643731293,-1144.16,0.00012,2]
[334915615,1723643731322,-1144.16,0.00012,2]
[334915616,1723643731350,-1144.16,0.00012,2]
[334915617,1723643731376,-1144.16,0.00012,2]
[334915618,1723643731405,-1144.16,0.00012,2]
[334915619,1723643731432,-1144.16,0.00012,2]
[334915620,1723643731463,-1144.16,0.00012,2]
[334915621,1723643731510,-1144.16,0.00012,2]
[334915622,1723643731541,-1144.16,0.00012,2]
[334915623,1723643731571,-1144.16,0.00012,2]
[334915624,1723643731602,-1144.16,0.00012,2]
[334915625,1723643731631,-1144.16,0.00012,2]
[334915626,1723643731662,-1144.16,0.00012,2]
[334915627,1723643731691,-1144.16,0.00012,2]
[334915628,1723643731720,-1144.16,0.00012,2]
[334915629,1723643731752,-1144.16,0.00012,2]
[334915630,1723643731781,-1144.16,0.00012,2]
[334915631,1723643731960,-1144.16,0.00012,2]
[334915632,1723643732034,-1144.16,0.00012,2]
[334915633,1723643732062,-1144.16,0.00012,2]
[334915634,1723643732087,-1144.16,0.00012,2]
[334915635,1723643732111,-1144.16,0.00012,2]
[334915636,1723643732136,-1144.16,0.00012,2]
[334915637,1723643732161,-1144.16,0.00012,2]
[334915638,1723643732184,-1144.16,0.00012,2]
[334915639,1723643732208,-1144.16,0.00012,2]
[334915640,1723643732232,-1144.16,0.00012,2]
[334915641,1723643732255,-1144.16,0.00012,2]
[334915642,1723643732279,-1144.16,0.00012,2]
[334915643,1723643732302,-1144.16,0.00012,2]
[334915644,1723643732325,-1144.16,0.00012,2]
[334915645,1723643732348,-1144.16,0.00012,2]
[334915646,1723643732382,-1144.16,0.00012,2]
[334915647,1723643732416,-1144.16,0.00012,2]
[334915648,1723643732449,-1144.16,0.00012,2]
[334915649,1723643732484,-1144.16,0.00012,2]
[334915650,1723643732538,-1144.16,0.00012,2]
[334915651,1723643732573,-1144.16,0.00012,2]
[334915652,1723643732608,-1144.16,0.00012,2]
[334915653,1723643732644,-1144.16,0.00012,2]
[334915654,1723643732679,-1144.16,0.00012,2]
[334915655,1723643732714,-1144.16,0.00012,2]
[334915656,1723643732749,-1144.16,0.00012,2]
[334915657,1723643732786,-1144.16,0.00012,2]
[334915658,1723643732820,-1144.16,0.00012,2]
[334915659,1723643732853,-1144.16,0.00012,2]
[334915660,1723643732886,-1144.16,0.00012,2]
[334915661,1723643732920,-1144.16,0.00012,2]
[334915662,1723643732952,-1144.16,0.00012,2]
[334915663,1723643732985,-1144.16,0.00012,2]
[334915664,1723643733036,-1144.16,0.00012,2]
[334915665,1723643733077,-1144.16,0.00012,2]
[334915666,1723643733112,-1144.16,0.00012,2]
[334915667,1723643733148,-1144.16,0.00012,2]
[334915668,1723643733184,-1144.16,0.00012,2]
[334915669,1723643733220,-1144.16,0.00012,2]
[334915670,1723643733258,-1144.16,0.00012,2]
[334915671,1723643733295,-1144.16,0.00012,2]
[334915672,1723643733334,-1144.16,0.00012,2]
[334915673,1723643733372,-1144.16,0.00012,2]
[334915674,1723643733412,-1144.16,0.00012,2]
[334915675,1723643733453,-1144.16,0.00012,2]
[334915676,1723643733495,-1144.16,0.00012,2]
[334915677,1723643733546,-1144.16,0.00012,2]
[334915678,1723643733584,-1144.16,0.00012,2]
[334915679,1723643733623,-1144.16,0.00012,2]
[334915680,1723643733662,-1144.16,0.00012,2]
[334915681,1723643733701,-1144.16,0.00012,2]
[334915682,1723643733740,-1144.16,0.00012,2]
[334915683,1723643733780,-1144.16,0.00012,2]
[334915684,1723643733817,-1144.16,0.00012,2]
[334915685,1723643733856,-1144.16,0.00012,2]
[334915686,1723643733891,-1144.16,0.00012,2]
[334915687,1723643733927,-1144.16,0.00012,2]
[334915688,1723643733965,-1144.16,0.00012,2]
[334915689,1723643734001,-1144.16,0.00012,2]
[334915690,1723643734038,-1144.16,0.00012,2]
[334915691,1723643734077,-1144.16,0.00012,2]
[334915692,1723643734115,-1144.16,0.00012,2]
[334915693,1723643734154,-1144.16,0.00012,2]
[334915694,1723643734190,-1144.16,0.00012,2]
[334915695,1723643734227,-1144.16,0.00012,2]
[334915696,1723643734261,-1144.16,0.00012,2]
[334915697,1723643734311,-1144.16,0.00012,2]
[334915698,1723643734347,-1144.16,0.00012,2]
[334915699,1723643734383,-1144.16,0.00012,2]
[334915700,1723643734420,-1144.16,0.00012,2]
[334915701,1723643734456,-1144.16,0.00012,2]
[334915702,1723643734492,-1144.16,0.00012,2]
[334915703,1723643734526,-1144.16,0.00012,2]
[334915704,1723643734563,-1144.16,0.00012,2]
[334915705,1723643734597,-1144.16,0.00012,2]
[334915706,1723643734632,-1144.16,0.00012,2]
[334915707,1723643734666,-1144.16,0.00012,2]
[334915708,1723643734703,-421.35,0.00012,2]
[334915709,1723643734736,-421.35,0.00012,2]
[334915710,1723643734769,-421.35,0.00012,2]
[334915711,1723643734817,-1009.79,0.00012,2]
[334915712,1723643734849,-1009.79,0.00012,2]
[334915713,1723643734882,-1009.79,0.00012,2]
[334915714,1723643734915,-1009.79,0.00012,2]
[334915715,1723643734948,-1009.79,0.00012,2]
[334915716,1723643734980,-1009.79,0.00012,2]
[334915717,1723643735011,-1009.79,0.00012,2]
[334915718,1723643735055,-1009.79,0.00012,2]
[334915719,1723643735087,-1009.79,0.00012,2]
[334915720,1723643735120,-1009.79,0.00012,2]
[334915721,1723643735152,-1009.79,0.00012,2]
[334915722,1723643735183,-1009.79,0.00012,2]
[334915723,1723643735215,-1009.79,0.00012,2]
[334915724,1723643735248,-1009.79,0.00012,2]
[334915725,1723643735288,-1009.79,0.00012,2]
[334915726,1723643735320,-1009.79,0.00012,2]
[334915727,1723643735358,-1009.79,0.00012,2]
[334915728,1723643735398,-1009.79,0.00012,2]
[334915729,1723643735438,-1009.79,0.00012,2]
[334915730,1723643735475,-1009.79,0.00012,2]
[334915731,1723643735508,-1009.79,0.00012,2]
[334915732,1723643735554,-1009.79,0.00012,2]
[334915733,1723643735588,-1009.79,0.00012,2]
[334915734,1723643735622,-1009.79,0.00012,2]
[334915735,1723643735655,-1009.79,0.00012,2]
[334915736,1723643735689,-353.99,0.00012033,2]
[334915737,1723643735724,-44422.74,0.00012055,2]
[334915738,1723643735758,-151.0,0.00012055,2]
[334915739,1723643735806,-265.735265,0.00012055,2]
[334915740,1723643735842,-151.0,0.00012055,2]
[334915741,1723643735874,-151.0,0.00012055,2]
[334915742,1723643735907,-189.109904,0.00012055,2]
[334915743,1723643735941,-263.749337,0.00012055,2]
[334915744,1723643735975,-223.549411,0.00012055,2]
[334915745,1723643736008,-223.549407,0.00012055,2]
[334915746,1723643736052,-159.681171,0.00012055,2]
[334915747,1723643736086,-159.681172,0.00012055,2]
[334915748,1723643736119,-151.0,0.00012055,2]
[334915749,1723643736153,-151.0,0.00012055,2]
[334915750,1723643736185,-254.515709,0.00012055,2]
[334915751,1723643736218,-254.515715,0.00012055,2]
[334915752,1723643736375,-173.632308,0.00012119,2]
[334915753,1723643736414,-173.632308,0.00012119,2]
[334915754,1723643736454,-320.0,0.00012182,2]
[334915755,1723643736487,-1000.0,0.000122,2]
[334915756,1723643736519,-226.0,0.000122,2]
[334915757,1723643736557,-954.8,0.000122,2]
[334915758,1723643736588,-359.0,0.000122,2]
[334915759,1723643736622,-587.0,0.00012234,2]
[334915760,1723643736656,-385.0,0.00012237,2]
[334915761,1723643736688,-149357.475,0.000123,2]
[334915762,1723643736723,-151.0,0.000123,2]
[334915763,1723643736755,-173.632308,0.000123,2]
[334915764,1723643736789,-173.632308,0.000123,2]
[334915765,1723643736821,-189.109904,0.000123,2]
[334915766,1723643736853,-227.227554,0.000123,2]
[334915767,1723643736885,-227.227554,0.000123,2]
[334915768,1723643736918,-235.892359,0.000123,2]
[334915769,1723643736950,-235.892359,0.000123,2]
[334915770,1723643736981,-346.716169,0.000123,2]
[334915771,1723643737013,-346.716169,0.000123,2]
[334915772,1723643737057,-177.463445,0.000123,2]
[334915773,1723643737092,-177.463445,0.000123,2]
[334915774,1723643737126,-151.0,0.000123,2]
[334915775,1723643737162,-806.848335,0.000123,2]
[334915776,1723643737194,-151.0,0.000123,2]
[334915777,1723643737231,-209.116136,0.000123,2]
[334915778,1723643737263,-209.116136,0.000123,2]
[334915779,1723643737311,-151.0,0.000123,2]
[334915780,1723643737347,-168.0,0.00012455,2]
[334915781,1723643737380,-603.2,0.00012455,2]
[334915782,1723643737414,-396.8,0.00012455,2]
[334915783,1723643737447,-353.99,0.00012458,2]
[334915784,1723643737481,-289.93285371,0.000125,2]
[334915785,1723643737512,-3113.55308366,0.0001251,2]
[334915786,1723643737557,-1401.42823836,0.00012678,2]
[334915787,1723643737590,-155.0,0.00012721,2]
[334915788,1723643737623,-843.96,0.00012727,2]
[334915789,1723643737656,-347.69615481,0.00012875,2]
[334915790,1723643737689,-3162.98810269,0.00012877,2]
[334915791,1723643737727,-353.99,0.00012884,2]
[334915792,1723643737765,-179.99,0.00012893,2]
[334915793,1723643737805,-15423.58862182,0.00013,2]
[334915794,1723643737837,-5042.98881001,0.0001305,2]
[334915795,1723643737868,-526.71491504,0.00013191,2]
[334915796,1723643737900,-353.99,0.0001331,2]
[334915797,1723643737936,-150.0,0.00013337,2]
[334915798,1723643737969,-150.0,0.00013337,2]
[334915799,1723643738003,-150.0,0.00013337,2]
[334915800,1723643738039,-300.76,0.00013337,2]
[334915801,1723643738075,-150.0,0.00013337,2]
[334915802,1723643738108,-150.0,0.00013337,2]
[334915803,1723643738141,-531.07,0.00013337,2]
[334915804,1723643738173,-150.0,0.00013337,2]
[334915805,1723643738206,-150.0,0.00013337,2]
[334915806,1723643738244,-150.0,0.00013337,2]
[334915807,1723643738287,-531.07,0.00013337,2]
[334915808,1723643738323,-150.0,0.00013337,2]
[334915809,1723643738356,-1061.53,0.00013337,2]
[334915810,1723643738389,-150.0,0.00013337,2]
[334915811,1723643738422,-213.78,0.00013337,2]
[334915812,1723643738457,-400.0,0.00013342,2]
[334915813,1723643738492,-400.0,0.00013342,2]
[334915814,1723643738533,-400.38766753,0.00013342,2]
[334915815,1723643738569,-400.0,0.00013342,2]
[334915816,1723643738609,-400.0,0.00013342,2]
[334915817,1723643738646,-320.0,0.000134,2]
[334915818,1723643738680,-155.24087385,0.000134,2]
[334915819,1723643738717,-823.0,0.00013456,2]
[334915820,1723643738757,-1000.0,0.000135,2]
[334915821,1723643738790,-1401.42823836,0.00013567,2]
[334915822,1723643738825,-151.0,0.00013698,2]
[334915823,1723643738860,-151.0,0.00013698,2]
[334915824,1723643738894,-153.677239,0.00013698,2]
[334915825,1723643738927,-173.632308,0.00013698,2]
[334915826,1723643738961,-173.632298,0.00013698,2]
[334915827,1723643738995,-189.109902,0.00013698,2]
[334915828,1723643739031,-151.0,0.00013698,2]
[334915829,1723643739066,-151.0,0.00013698,2]
[334915830,1723643739102,-151.0,0.00013698,2]
[334915831,1723643739137,-540.79,0.00013698,2]
[334915832,1723643739174,-500.0,0.00013698,2]
[334915833,1723643739210,-500.0,0.00013698,2]
[334915834,1723643739251,-500.0,0.00013698,2]
[334915835,1723643739292,-500.0,0.00013698,2]
[334915836,1723643739326,-500.0,0.00013698,2]
[334915837,1723643739365,-500.0,0.00013698,2]
[334915838,1723643739400,-500.0,0.00013698,2]
[334915839,1723643739439,-500.0,0.00013698,2]
[334915840,1723643739477,-500.0,0.00013698,2]
[334915841,1723643739513,-500.0,0.00013698,2]
[334915842,1723643739552,-542.89314346,0.00013698,2]
[334915843,1723643739589,-601.62816408,0.00013698,2]
[334915844,1723643739625,-500.0,0.00013698,2]
[334915845,1723643739662,-592.0804229,0.00013698,2]
[334915846,1723643739699,-500.0,0.00013698,2]
[334915847,1723643739738,-500.0,0.00013698,2]
[334915848,1723643739779,-500.0,0.00013698,2]
[334915849,1723643739817,-362.7795514,0.00013698,2]
[334915850,1723643739850,-567.82,0.00013698,2]
[334915851,1723643739884,-483.27090846,0.00013698,2]
[334915852,1723643739918,-554.53796987,0.00013698,2]
[334915853,1723643739956,-500.0,0.00013698,2]
[334915854,1723643739993,-500.0,0.00013698,2]
[334915855,1723643740036,-500.0,0.00013698,2]
[334915856,1723643740076,-500.0,0.00013698,2]
[334915857,1723643740115,-500.0,0.00013698,2]
[334915858,1723643740156,-500.0,0.00013698,2]
[334915859,1723643740193,-500.0,0.00013698,2]
[334915860,1723643740227,-385.82888344,0.00013698,2]
[334915861,1723643740260,-500.0,0.00013698,2]
[334915862,1723643740308,-573.51185334,0.00013698,2]
[334915863,1723643740344,-500.0,0.00013698,2]
[334915864,1723643740377,-524.7360209,0.00013698,2]